bitfinex/quotes_ETHUSD_20250827
["timestamp","ask_amount","ask_price","bid_price","bid_amount"]
[1756261432817,0.317,4588.8,4588.7,4.752]
[1756261433316,0.7637,4588.8,4588.7,4.752]
[1756261433517,2.94291896,4588.8,4588.7,1.677]
[1756261433714,3.45784758,4588.8,4588.7,1.677]
[1756261433918,3.45784758,4588.8,4588.7,5.489]
[1756261434734,1.27862862,4588.8,4588.7,1.677]
[1756261434887,2.94291896,4588.8,4588.7,5.489]
[1756261435087,2.94291896,4588.8,4588.7,1.677]
[1756261435713,2.94291896,4588.8,4588.7,3.702]
[1756261436318,2.17938646,4588.5,4588.0,0.1088]
[1756261436520,3.0,4588.7,4587.9,1.676]
[1756261436720,3.0,4588.7,4588.0,4.00983187]
[1756261436721,0.21793865,4588.4,4588.0,4.00983187]
[1756261436917,2.47655144,4588.1,4588.0,3.808]
[1756261437238,2.92325144,4588.1,4588.0,3.808]
[1756261437393,2.92325144,4588.1,4587.9,1.676]
[1756261437394,2.17959895,4588.0,4587.9,1.676]
[1756261437716,2.62629895,4588.0,4587.9,5.485]
[1756261437925,2.92459895,4588.0,4587.9,5.484]
[1756261438103,1.22399591,4588.0,4587.9,5.484]
[1756261438304,2.92459895,4588.0,4587.9,5.484]
[1756261439140,0.745,4588.0,4587.9,1.676]
[1756261439305,2.92459895,4588.0,4587.9,5.483]
[1756261439507,3.4350052,4588.0,4587.9,5.483]
[1756261439703,4.25540625,4588.0,4586.7,0.16672533]
[1756261439937,0.02724558,4587.9,4586.8,4.696]
[1756261440135,0.02724558,4587.9,4586.8,3.02]
[1756261440136,2.47862165,4586.9,4586.8,3.02]
[1756261440337,2.91402165,4586.9,4586.8,3.02]
[1756261440901,2.18016918,4586.8,4586.7,1.676]
[1756261441098,3.15496547,4586.8,4586.7,1.676]
[1756261441300,3.43091336,4586.8,4586.7,5.489]
[1756261441852,1.25074418,4586.8,4586.7,5.489]
[1756261442138,3.43091336,4586.8,4586.7,5.489]
[1756261443333,3.77215048,4586.8,4586.7,5.489]
[1756261443647,6.77215048,4586.8,4586.7,1.676]
[1756261443829,6.77215048,4586.8,4586.0,0.1088]
[1756261443830,1.5919813,4586.8,4586.0,1.676]
[1756261444147,2.18026424,4586.6,4586.0,1.676]
[1756261444308,0.77663712,4586.8,4586.0,1.676]
[1756261444632,2.18049651,4586.2,4586.1,3.671]
[1756261444821,2.48369651,4586.2,4586.1,3.671]
[1756261445811,2.48369651,4586.2,4586.0,1.676]
[1756261445812,2.18050195,4586.1,4586.0,1.676]
[1756261446072,2.61590195,4586.1,4586.0,1.676]
[1756261446346,2.61590195,4586.1,4585.9,3.807]
[1756261446347,2.18054949,4586.0,4585.9,3.808]
[1756261446649,2.91914949,4586.0,4585.9,3.808]
[1756261446871,2.18059704,4585.9,4585.8,0.02]
[1756261447208,5.91919704,4585.9,4585.8,0.02]
[1756261447648,3.0,4585.9,4585.8,3.827]
[1756261447850,2.18013482,4586.9,4585.8,4.9559]
[1756261448052,0.655738,4587.7,4585.9,0.11991928]
[1756261448340,0.34127548,4587.4,4586.7,0.1088]
[1756261448514,0.34127548,4587.4,4586.8,5.19611048]
[1756261448717,0.34127548,4587.4,4586.8,5.185]
[1756261449137,2.52117702,4587.4,4586.8,5.185]
[1756261449308,3.0,4587.3,4586.8,5.185]
[1756261449513,3.34127548,4587.4,4586.9,0.4586]
[1756261449947,2.52116148,4587.4,4586.9,0.4586]
[1756261450145,0.34127548,4587.4,4587.0,0.01110905]
[1756261450440,0.02,4587.8,4587.2,0.1088]
[1756261450652,2.17979104,4587.6,4587.2,0.1088]
[1756261450814,0.02,4587.8,4587.2,0.1088]
[1756261451215,0.02,4587.8,4587.3,0.01110501]
[1756261451646,0.02,4587.8,4587.2,0.1088]
[1756261452055,2.19970032,4587.8,4587.3,3.806]
[1756261452221,2.17978899,4587.6,4587.3,3.806]
[1756261452417,2.17983651,4587.5,4587.3,3.806]
[1756261452618,3.0,4587.7,4587.4,0.2876]
[1756261452838,3.35884226,4587.8,4587.4,0.2876]
[1756261453346,3.35884226,4587.8,4587.5,3.805]
[1756261453758,2.53854367,4587.8,4587.5,3.805]
[1756261454254,2.17978899,4587.6,4587.5,3.805]
[1756261454459,5.17978899,4587.6,4587.5,3.805]
[1756261454626,3.0,4587.6,4587.5,3.803]
[1756261454825,5.1797536,4587.7,4587.5,3.803]
[1756261455020,5.1797536,4587.7,4586.9,0.1088]
[1756261455021,2.18005517,4587.1,4586.9,0.1088]
[1756261455228,2.18002659,4587.1,4587.0,3.802]
[1756261455546,0.58797729,4587.7,4587.0,4.0896]
[1756261455547,2.17997495,4587.3,4587.0,4.0896]
[1756261455851,2.17997495,4587.3,4586.9,0.1088]
[1756261455852,2.17985082,4587.5,4587.1,3.8]
[1756261456221,2.17997907,4587.2,4587.1,3.8]
[1756261456922,0.58797729,4587.7,4587.1,4.0866]
[1756261457126,0.02,4587.8,4587.1,4.0866]
[1756261457127,2.17993959,4587.3,4587.1,4.0866]
[1756261457396,0.02,4587.8,4586.6,0.001]
[1756261457397,2.18002659,4587.1,4586.8,0.02]
[1756261457633,2.18021671,4586.7,4586.6,0.001]
[1756261457831,2.87486423,4586.7,4586.6,0.001]
[1756261458028,2.87486423,4586.7,4586.6,1.172]
[1756261458029,5.18021671,4586.7,4586.6,1.172]
[1756261458249,5.18021671,4586.7,4586.6,1.4596]
[1756261458447,0.34127618,4587.1,4586.6,1.4596]
[1756261458448,2.52134296,4587.1,4586.6,1.9182]
[1756261458622,2.17993239,4587.3,4586.7,0.77226]
[1756261458834,0.655608,4588.1,4587.2,0.2876]
[1756261459039,2.17975454,4587.7,4587.3,5.49]
[1756261459222,2.17979995,4587.6,4587.3,5.49]
[1756261460049,0.21997545,4587.7,4587.3,5.49]
[1756261460859,0.34120633,4588.1,4587.6,0.2876]
[1756261461282,2.17955103,4588.2,4587.6,0.2876]
[1756261461486,2.17960385,4588.0,4587.7,0.4586]
[1756261461669,2.17954607,4588.2,4587.7,0.4586]
[1756261461988,3.0,4588.3,4587.7,4.5572]
[1756261462300,2.17964768,4587.9,4587.7,4.5572]
[1756261462482,2.17959713,4588.1,4587.7,4.5572]
[1756261462784,2.17960181,4588.0,4587.7,4.5572]
[1756261462990,3.34114113,4588.4,4587.7,4.5572]
[1756261463160,2.17959463,4588.1,4587.7,4.5562]
[1756261463482,0.34114113,4588.4,4587.7,4.5562]
[1756261464084,0.34114113,4588.4,4587.7,6.90082966]
[1756261464281,0.34114113,4588.4,4587.7,7.59091263]
[1756261465059,0.34114113,4588.4,4587.7,3.78091263]
[1756261465382,0.34114113,4588.4,4587.7,6.89882966]
[1756261465786,0.34114113,4588.4,4587.7,3.09082966]
[1756261465949,2.52055836,4588.4,4587.7,4.71708818]
[1756261466550,0.34114113,4588.4,4587.7,4.71708818]
[1756261466753,0.34114113,4588.4,4587.7,6.89682966]
[1756261466948,2.1793699,4588.5,4587.7,6.89682966]
[1756261467179,2.17931908,4588.6,4587.7,6.89682966]
[1756261467384,2.17931908,4588.6,4587.7,7.00562966]
[1756261467575,2.17931908,4588.6,4587.7,3.03474148]
[1756261467884,2.17931908,4588.6,4587.7,6.83874148]
[1756261468081,2.17931908,4588.6,4587.7,7.74060332]
[1756261468472,2.17936676,4588.5,4587.7,7.74060332]
[1756261468681,2.17927479,4588.7,4587.7,7.74060332]
[1756261468984,2.17931492,4588.6,4587.7,7.90452562]
[1756261469186,0.4658,4588.6,4587.7,1.46218414]
[1756261469391,0.4658,4588.6,4587.7,4.3583223]
[1756261469592,0.2996,4587.8,4587.7,0.2727223]
[1756261469885,0.02,4587.8,4587.7,4.2494223]
[1756261470122,0.02,4587.8,4587.7,4.7217223]
[1756261470259,2.52038295,4588.7,4587.8,0.66]
[1756261470260,0.34111125,4588.7,4587.8,0.66]
[1756261470467,0.02,4588.8,4587.7,5.42275436]
[1756261470468,0.02,4588.8,4588.7,2.17926645]
[1756261470700,0.02,4588.8,4588.7,8.81384705]
[1756261470890,0.02,4588.8,4588.7,9.56255725]
[1756261471377,0.02,4588.8,4588.7,8.90255725]
[1756261471577,0.02,4588.8,4588.7,6.2519908]
[1756261472094,0.02,4588.8,4588.7,2.4399908]
[1756261472314,0.02,4588.8,4588.7,5.7755]
[1756261472591,0.02,4588.8,4588.7,5.488]
[1756261472979,0.02,4588.8,4588.7,5.7755]
[1756261473181,0.02,4588.8,4588.7,8.53586645]
[1756261473386,0.02,4588.8,4588.7,9.60738727]
[1756261473981,0.02,4588.8,4588.7,10.26738727]
[1756261474467,0.02,4588.8,4588.7,6.95482082]
[1756261474888,0.02,4588.8,4588.7,9.60638727]
[1756261475199,0.02,4588.8,4588.7,3.14482082]
[1756261475369,0.02,4588.8,4588.7,5.5948]
[1756261475696,0.02,4588.8,4588.7,8.53386645]
[1756261475894,0.02,4588.8,4588.7,6.3546]
[1756261476098,0.02,4588.8,4588.7,5.5938]
[1756261476867,0.02,4588.8,4588.7,1.7858]
[1756261477081,0.02,4588.8,4588.7,5.5918]
[1756261477612,0.02,4588.8,4588.7,6.91078]
[1756261477813,0.02,4588.8,4588.7,9.09004645]
[1756261478181,0.02,4588.8,4588.7,5.28404645]
[1756261478409,0.02,4588.8,4588.7,4.81174645]
[1756261478569,0.02,4588.8,4588.7,8.61574645]
[1756261479202,0.02,4588.8,4588.7,9.08804645]
[1756261479790,0.02,4588.8,4588.7,5.28404645]
[1756261480100,0.02,4588.8,4588.7,9.74604645]
[1756261481212,0.02,4588.8,4588.7,5.94404645]
[1756261481417,0.02,4588.8,4588.7,5.18424645]
[1756261481579,0.02,4588.8,4588.7,9.09004645]
[1756261482233,0.02,4588.8,4588.7,9.75004645]
[1756261483703,1e-08,4588.8,4588.7,12.75504645]
[1756261484227,0.04,4589.8,4588.7,12.75504645]
[1756261484228,1e-08,4589.8,4589.7,2.17879164]
[1756261484519,0.02,4590.8,4589.7,2.17879164]
[1756261484520,0.02,4590.8,4590.7,2.83831703]
[1756261484715,0.02,4590.8,4590.7,13.96361703]
[1756261484891,0.02,4590.8,4590.7,16.0501181]
[1756261485317,0.02,4590.8,4590.7,12.2351181]
[1756261485487,0.02,4590.8,4590.7,16.0501181]
[1756261486413,0.02,4590.8,4590.7,12.2351181]
[1756261486607,0.02,4590.8,4590.7,16.0501181]
[1756261486911,0.02,4590.8,4590.7,16.21264082]
[1756261488203,0.02,4590.8,4590.7,12.39764082]
[1756261488409,0.02,4590.8,4590.7,16.20964082]
[1756261488983,1e-08,4590.8,4590.7,16.10084082]
[1756261489197,1e-08,4590.8,4590.7,16.20964082]
[1756261490808,0.02,4592.8,4591.7,2.83784262]
[1756261491126,0.02,4592.8,4591.7,8.32484262]
[1756261491325,0.4658,4592.7,4591.7,8.43364262]
[1756261491797,0.4658,4592.7,4591.7,3.96164262]
[1756261492355,0.7836,4591.8,4591.7,5.5938]
[1756261492824,0.02,4591.8,4591.7,7.77164262]
[1756261492997,0.02,4591.8,4591.7,8.30321463]
[1756261493196,0.02,4591.8,4591.7,8.59071463]
[1756261493519,0.02,4591.8,4591.7,9.06301463]
[1756261495219,0.3194,4591.8,4591.7,1.7838]
[1756261495409,0.3194,4591.8,4591.7,7.76964262]
[1756261495605,0.3194,4591.8,4591.7,5.5918]
[1756261495806,0.3194,4591.8,4591.7,5.5908]
[1756261496119,0.7836,4591.8,4591.7,1.7838]
[1756261496327,0.7836,4591.8,4591.7,5.5908]
[1756261496623,0.7836,4591.8,4591.7,1.7838]
[1756261496924,0.7836,4591.8,4591.7,5.5898]
[1756261497220,0.3194,4591.8,4591.7,7.76764262]
[1756261497422,0.3194,4591.8,4591.7,1.7838]
[1756261497607,0.7836,4591.8,4591.7,5.5888]
[1756261497918,0.7836,4591.8,4591.7,1.7838]
[1756261498118,0.7836,4591.8,4591.7,5.479]
[1756261498307,0.7836,4591.8,4591.7,1.675]
[1756261498697,3.28247562,4591.8,4591.7,5.478]
[1756261499130,1.10468042,4591.8,4591.7,5.478]
[1756261499333,0.7836,4591.8,4591.7,5.478]
[1756261499728,0.7836,4591.8,4591.7,1.675]
[1756261500032,0.3194,4591.8,4591.7,5.477]
[1756261500254,0.02,4591.8,4591.7,5.5858]
[1756261500532,0.3167,4591.8,4591.7,1.7838]
[1756261500709,0.7835,4591.8,4591.7,5.5848]
[1756261500924,0.7835,4591.8,4591.7,1.7838]
[1756261501136,0.7835,4591.8,4591.7,5.5858]
[1756261501345,0.7835,4591.8,4591.7,1.7838]
[1756261501500,0.7835,4591.8,4591.7,5.5858]
[1756261502015,0.3167,4591.8,4591.7,5.5858]
[1756261502218,0.3167,4591.8,4591.7,5.477]
[1756261502808,0.02,4591.8,4591.7,5.477]
[1756261503005,0.02,4591.8,4591.7,5.8837]
[1756261503209,0.02,4591.8,4591.7,8.06154262]
[1756261503446,0.02,4591.8,4591.7,10.19708988]
[1756261504131,0.02,4592.8,4592.7,2.17736843]
[1756261504314,0.02,4592.8,4592.7,13.54936843]
[1756261504510,0.02,4592.8,4592.7,14.65275884]
[1756261504854,1e-08,4592.8,4592.7,14.65275884]
[1756261505068,1e-08,4592.8,4592.7,14.65575884]
[1756261505341,1e-08,4592.8,4592.7,14.65675884]
[1756261505528,1e-08,4592.8,4592.7,10.84775884]
[1756261506047,0.02,4593.8,4593.7,2.83689444]
[1756261506258,0.04,4594.8,4594.7,2.83642065]
[1756261506460,0.04,4594.8,4594.7,10.16413931]
[1756261506760,0.8099,4594.8,4594.7,5.7694351]
[1756261506960,0.8099,4594.8,4594.7,5.501]
[1756261508221,0.8099,4594.8,4594.7,1.675]
[1756261508441,0.8099,4594.8,4594.7,5.513]
[1756261509526,4.13572801,4594.8,4594.7,5.512]
[1756261509768,4.13572801,4594.8,4592.2,0.538884]
[1756261509769,4.13572801,4594.8,4594.0,1.674]
[1756261509925,4.13572801,4594.8,4592.6,5.234]
[1756261509926,2.17689444,4593.7,4593.6,1.674]
[1756261510249,2.94679444,4593.7,4593.6,3.837]
[1756261510454,1.53482321,4593.7,4593.6,3.837]
[1756261510654,0.4685,4594.5,4593.6,3.837]
[1756261510854,0.042,4594.8,4593.7,0.21082549]
[1756261511022,0.042,4594.8,4594.4,0.1088]
[1756261511223,0.042,4594.8,4594.7,0.1088]
[1756261511440,0.042,4594.8,4594.7,3.9538]
[1756261511723,0.3434,4594.8,4594.7,3.9538]
[1756261511925,0.042,4594.8,4594.7,3.845]
[1756261512149,0.042,4594.8,4594.5,3.95931403]
[1756261512150,0.042,4594.8,4594.5,1.7828]
[1756261512381,0.3014,4594.6,4594.5,1.7828]
[1756261512663,1.06872869,4594.6,4594.5,4.489]
[1756261512961,2.94636802,4594.6,4594.5,1.674]
[1756261513264,2.94636802,4594.6,4594.5,4.49]
[1756261513466,5.94636802,4594.6,4594.5,5.521]
[1756261513874,5.94636802,4594.6,4594.5,3.847]
[1756261514174,7.10350891,4594.6,4594.5,3.847]
[1756261514562,2.17679966,4593.9,4593.8,1.694]
[1756261514883,5.94669966,4593.9,4593.8,1.694]
[1756261515047,5.94669966,4593.9,4593.8,5.543]
[1756261515279,6.19377081,4593.9,4593.8,1.694]
[1756261515456,6.5344622,4593.9,4593.8,1.694]
[1756261515657,2.17694183,4593.6,4593.5,3.767]
[1756261515854,2.17722621,4593.0,4592.9,1.674]
[1756261516075,2.94712621,4593.0,4592.9,5.521]
[1756261516282,5.47862621,4593.0,4592.9,5.521]
[1756261516493,0.73538051,4593.5,4592.9,5.521]
[1756261516643,2.17670664,4594.1,4593.0,2.17722621]
[1756261516843,0.4685,4595.1,4593.8,0.2979]
[1756261517073,0.99827391,4595.3,4593.9,5.72899284]
[1756261517274,0.34363691,4595.3,4594.0,2.83934393]
[1756261517481,0.003,4595.3,4594.5,0.1088]
[1756261517687,2.17917654,4595.3,4594.5,0.1088]
[1756261517984,2.17618392,4595.2,4594.6,3.856]
[1756261518285,0.003,4595.3,4594.7,3.857]
[1756261518575,2.17914237,4595.3,4594.7,3.857]
[1756261518775,0.003,4595.3,4594.7,6.03342065]
[1756261518962,0.003,4595.3,4594.7,4.80621697]
[1756261519168,0.003,4595.3,4594.7,4.91494672]
[1756261519370,0.003,4595.3,4594.7,4.16544672]
[1756261519568,0.003,4595.3,4594.7,6.34186737]
[1756261520347,0.003,4595.3,4594.7,6.98256737]
[1756261520558,0.003,4595.3,4594.7,7.09136737]
[1756261520782,0.003,4595.3,4594.7,7.53907582]
[1756261521350,0.003,4595.3,4594.7,8.19907582]
[1756261521595,0.003,4595.3,4594.7,3.68207582]
[1756261521790,0.003,4595.3,4594.7,6.33965915]
[1756261521953,0.003,4595.3,4594.7,0.3082385]
[1756261522154,0.3434,4594.8,4594.7,3.859]
[1756261522405,0.3434,4594.8,4594.5,0.1088]
[1756261522683,0.49570525,4594.7,4594.0,0.19949501]
[1756261522888,0.49570525,4594.7,4593.9,1.674]
[1756261523060,0.4685,4594.7,4594.0,3.859]
[1756261523449,2.21838219,4594.8,4594.0,3.859]
[1756261523696,0.042,4594.8,4594.0,4.3106]
[1756261523903,0.042,4594.8,4594.6,2.17644914]
[1756261524080,0.042,4594.8,4594.7,3.858]
[1756261524596,0.042,4594.8,4594.7,6.79493931]
[1756261524908,0.042,4594.8,4594.7,6.9832667]
[1756261528693,0.3393,4594.8,4594.7,0.19947696]
[1756261528895,0.3393,4594.8,4594.7,3.864]
[1756261529094,0.29356183,4594.8,4594.7,3.864]
[1756261529408,0.042,4594.8,4594.7,3.864]
[1756261529607,0.042,4594.8,4594.2,1.674]
[1756261529608,0.79,4594.8,4594.2,1.674]
[1756261529939,2.17646802,4594.6,4594.3,3.865]
[1756261530211,0.51700542,4594.5,4594.4,3.865]
[1756261530404,0.2973,4594.5,4594.4,3.865]
[1756261530614,2.17661014,4594.3,4594.2,1.674]
[1756261530916,2.47391014,4594.3,4594.2,5.539]
[1756261531072,3.38964894,4594.3,4594.2,1.674]
[1756261531279,6.38964894,4594.3,4594.2,1.674]
[1756261531496,5.17672467,4594.1,4593.8,0.001]
[1756261531671,0.62571716,4594.0,4593.8,0.001]
[1756261531879,5.47409966,4593.9,4593.8,0.001]
[1756261532439,5.47409966,4593.9,4593.8,1e-08]
[1756261532440,2.92479966,4593.9,4593.8,1e-08]
[1756261533009,2.47409966,4593.9,4593.8,1e-08]
[1756261533198,0.2973,4593.9,4593.8,1e-08]
[1756261533720,0.34064821,4594.3,4593.8,1e-08]
[1756261533924,2.17642065,4594.7,4593.8,1e-08]
[1756261534079,0.22184206,4594.6,4593.8,1e-08]
[1756261534424,2.17667148,4594.2,4593.8,1e-08]
[1756261534606,0.4507,4594.6,4593.8,1e-08]
[1756261534607,0.2973,4593.9,4593.8,1e-08]
[1756261534816,2.17667148,4594.2,4593.8,3.86900001]
[1756261534974,0.4507,4594.6,4593.8,3.86900001]
[1756261535174,0.042,4594.8,4594.2,2.17663849]
[1756261535578,0.042,4594.8,4594.3,0.21109947]
[1756261535782,0.042,4594.8,4594.4,4.06907749]
[1756261535982,0.042,4594.8,4594.5,1.87406065]
[1756261536198,0.042,4594.8,4594.5,1.674]
[1756261536404,0.26383279,4594.8,4594.5,1.674]
[1756261536612,0.042,4594.8,4594.5,1.674]
[1756261537398,0.042,4594.8,4594.5,1.68502008]
[1756261537597,0.042,4594.8,4594.5,1.674]
[1756261538023,0.042,4594.8,4594.6,3.864]
[1756261538836,0.042,4594.8,4594.7,3.862]
[1756261540422,0.042,4594.8,4594.7,6.32592065]
[1756261540737,0.042,4594.8,4594.7,4.34661952]
[1756261541041,0.042,4594.8,4594.7,6.52204017]
[1756261541404,0.042,4594.8,4594.7,6.95984017]
[1756261542841,0.042,4594.8,4594.7,2.66404017]
[1756261543048,2.21837329,4594.8,4594.7,0.20011952]
[1756261543206,2.95513607,4594.8,4594.7,3.854]
[1756261543405,0.77876278,4594.8,4594.7,3.854]
[1756261543937,2.95513607,4594.8,4594.7,3.854]
[1756261544136,0.48146278,4594.8,4594.7,3.854]
[1756261544338,0.042,4594.8,4594.7,3.854]
[1756261544843,0.042,4594.8,4594.7,3.86501866]
[1756261545151,0.042,4594.8,4594.7,3.854]
[1756261545506,0.042,4594.8,4594.7,4.0543019]
[1756261545944,0.042,4594.8,4594.7,6.51822255]
[1756261546108,0.042,4594.8,4594.7,8.00377448]
[1756261547839,0.042,4594.8,4594.7,3.42447448]
[1756261548014,0.042,4594.8,4594.7,4.0593019]
[1756261548339,0.042,4594.8,4594.7,6.96102255]
[1756261548638,0.042,4594.8,4594.7,4.0553019]
[1756261548864,0.042,4594.8,4594.7,4.05557127]
[1756261549048,2.51567329,4594.8,4594.7,4.05557127]
[1756261549224,0.042,4594.8,4594.7,4.05557127]
[1756261549424,0.3393,4594.8,4594.7,0.20062663]
[1756261549627,2.76723699,4594.8,4594.7,4.05562663]
[1756261549811,2.17642065,4594.7,4594.6,0.1088]
[1756261550006,2.62712065,4594.7,4594.6,4.16946041]
[1756261550206,2.92442065,4594.7,4594.6,4.06066041]
[1756261550408,2.98799596,4594.7,4594.6,4.06066041]
[1756261550711,2.47372065,4594.7,4594.6,4.06066041]
[1756261551038,0.2973,4594.7,4594.6,4.06066041]
[1756261551940,2.47372065,4594.7,4594.6,0.20066041]
[1756261552132,2.47372065,4594.7,4594.6,4.05966041]
[1756261554464,2.17646802,4594.6,4594.5,1.674]
[1756261554611,2.17646802,4594.6,4594.5,5.528]
[1756261554814,2.47376802,4594.6,4594.5,5.528]
[1756261555015,2.92446802,4594.6,4594.5,5.528]
[1756261555241,3.48567754,4594.6,4594.5,5.528]
[1756261555744,3.48567754,4594.6,4594.5,1.674]
[1756261556437,3.48567754,4594.6,4594.5,5.526]
[1756261557026,3.48567754,4594.6,4594.5,5.524]
[1756261557228,2.17679966,4593.9,4593.8,1.67400001]
[1756261557548,2.47409966,4593.9,4593.8,1.67400001]
[1756261557741,2.47409966,4593.9,4593.8,5.52400001]
[1756261558049,2.92479966,4593.9,4593.8,5.52400001]
[1756261558747,2.92479966,4593.9,4593.8,5.52300001]
[1756261558954,3.4349524,4593.9,4593.8,5.52300001]
[1756261559253,6.4349524,4593.9,4593.8,3.84700001]
[1756261559747,5.9842524,4593.9,4593.8,3.84700001]
[1756261559917,6.4517524,4593.9,4593.8,3.84700001]
[1756261560520,6.4517524,4593.9,4593.8,1e-08]
[1756261560951,6.55989083,4593.9,4593.8,1e-08]
[1756261561125,6.4517524,4593.9,4593.8,1e-08]
[1756261562972,6.4517524,4593.9,4593.3,1e-08]
[1756261562973,2.17694183,4593.6,4593.3,1e-08]
[1756261563268,2.17703661,4593.4,4593.3,1e-08]
[1756261563447,5.48723661,4593.4,4593.3,1e-08]
[1756261563622,2.95473661,4593.4,4593.3,1e-08]
[1756261564062,3.29555547,4593.4,4593.3,1e-08]
[1756261564230,6.80570821,4593.4,4593.3,1e-08]
[1756261564959,5.68718935,4593.4,4593.3,1e-08]
[1756261565251,1.82649632,4594.8,4593.3,0.76720001]
[1756261565454,2.17661014,4594.3,4593.3,0.76720001]
[1756261565629,2.17679057,4594.0,4593.3,0.76720001]
[1756261565831,2.17690137,4593.7,4593.3,0.76720001]
[1756261566035,0.51766101,4594.2,4593.3,0.30850001]
[1756261566242,0.51766101,4594.2,4593.4,3.845]
[1756261566446,0.4675,4594.7,4593.4,3.845]
[1756261566447,2.17693586,4593.7,4593.4,3.845]
[1756261566648,2.17695098,4593.6,4593.4,3.845]
[1756261566849,3.4675,4594.7,4593.5,0.3085]
[1756261567074,2.17682875,4593.9,4593.5,0.3085]
[1756261567448,2.17682875,4593.9,4593.6,0.4587]
[1756261567638,3.0,4594.5,4593.6,0.4587]
[1756261567639,3.0,4594.5,4593.8,0.3085]
[1756261567845,2.1767705,4594.0,4593.8,0.3085]
[1756261568040,0.56119174,4594.4,4593.3,1e-08]
[1756261568280,2.17696998,4593.6,4593.3,1e-08]
[1756261568784,0.3102,4593.4,4593.3,1e-08]
[1756261568986,2.17703661,4593.4,4593.3,1e-08]
[1756261569268,5.92263213,4593.4,4593.3,1e-08]
[1756261569438,5.48723661,4593.4,4593.3,1e-08]
[1756261569640,5.8280013,4593.4,4593.3,1e-08]
[1756261569879,6.2955013,4593.4,4593.3,1e-08]
[1756261570237,5.5178013,4593.4,4593.3,1e-08]
[1756261570441,2.17643138,4594.7,4593.3,0.76720001]
[1756261570442,3.0,4594.5,4593.3,0.76720001]
[1756261570641,0.38934314,4594.5,4593.3,0.76720001]
[1756261570979,0.34073196,4594.4,4593.6,2.17693514]
[1756261571274,2.17662102,4594.3,4593.7,4.3017]
[1756261571779,2.1767049,4594.1,4593.8,3.844]
[1756261571937,0.46938275,4594.3,4593.8,3.844]
[1756261571938,2.17665752,4594.2,4593.8,3.844]
[1756261572144,0.46938275,4594.3,4593.8,3.844]
[1756261572145,2.1767049,4594.1,4593.8,3.844]
[1756261572367,0.3102,4593.9,4593.7,3.843]
[1756261572554,2.17684705,4593.8,4593.7,3.843]
[1756261572758,2.17684705,4593.8,4593.7,4.6102]
[1756261572974,3.0,4594.1,4593.7,4.6102]
[1756261573190,2.17671654,4594.1,4593.7,4.1515]
[1756261573345,2.17671654,4594.1,4593.8,0.4587]
[1756261573545,2.17675764,4594.0,4593.8,0.4587]
[1756261573766,2.17679966,4593.9,4593.8,0.4587]
[1756261574303,0.55173022,4594.3,4593.9,0.7672]
[1756261574466,0.34073196,4594.4,4593.9,0.7672]
[1756261574674,2.42834691,4594.3,4593.9,0.7672]
[1756261574887,3.25172381,4594.3,4593.9,0.7672]
[1756261575068,3.0,4594.3,4594.0,0.4587]
[1756261575269,0.34073196,4594.4,4594.2,0.3085]
[1756261575476,0.34073196,4594.4,4594.3,3.84]
[1756261575998,2.17642497,4594.7,4594.3,3.84]
[1756261576359,2.17647727,4594.6,4594.3,3.84]
[1756261576872,2.1767049,4594.1,4594.0,1.675]
[1756261577072,2.4869049,4594.1,4594.0,1.675]
[1756261577390,5.9544049,4594.1,4594.0,1.675]
[1756261577590,2.17679966,4593.9,4593.8,3.836]
[1756261577887,2.48699966,4593.9,4593.8,3.836]
[1756261578256,2.17693862,4593.7,4593.3,1.67400001]
[1756261578463,2.17693862,4593.7,4593.4,3.836]
[1756261578664,2.42738368,4593.7,4593.4,3.836]
[1756261578863,2.17695446,4593.6,4593.4,3.836]
[1756261579063,0.25044506,4593.7,4593.4,3.836]
[1756261579267,0.34072395,4594.3,4593.6,0.3085]
[1756261579580,3.0,4594.2,4593.7,0.01102861]
[1756261579785,2.21840225,4594.8,4594.2,0.3085]
[1756261580008,0.22184023,4594.7,4594.3,3.833]
[1756261580162,0.042,4594.8,4594.6,0.3085]
[1756261580582,0.042,4594.8,4594.7,0.4587]
[1756261580773,0.042,4594.8,4594.7,2.63512065]
[1756261580969,0.042,4594.8,4594.7,2.94362065]
[1756261581269,0.042,4594.8,4594.7,3.25274007]
[1756261582071,0.042,4594.8,4594.7,3.80668335]
[1756261582277,0.042,4594.8,4594.7,7.63868335]
[1756261582521,0.042,4594.8,4594.7,7.51886469]
[1756261582812,0.042,4594.8,4594.7,7.62766469]
[1756261584519,0.042,4594.8,4594.7,8.28766469]
[1756261585212,0.003,4595.3,4595.2,2.83618384]
[1756261585421,0.003,4595.3,4595.2,13.7769661]
[1756261585592,0.003,4595.3,4595.2,14.5441661]
[1756261585778,0.003,4595.3,4595.2,10.7101661]
[1756261585978,0.003,4595.3,4595.2,15.83280872]
[1756261586210,0.003,4595.3,4595.2,15.94160872]
[1756261586612,0.003,4595.3,4595.2,12.10760872]
[1756261587208,0.003,4595.3,4595.2,15.93960872]
[1756261588114,0.003,4595.3,4595.2,8.55598384]
[1756261588904,0.003,4595.3,4595.2,6.3798]
[1756261589298,0.003,4595.3,4595.2,5.6238]
[1756261589506,0.003,4595.3,4595.2,1.7828]
[1756261589906,0.003,4595.3,4595.2,5.6208]
[1756261591278,0.003,4595.3,4595.2,5.6188]
[1756261591482,0.3147,4595.3,4595.2,5.509]
[1756261591716,3.19963729,4595.3,4595.2,5.509]
[1756261591918,2.97503818,4595.3,4595.2,5.509]
[1756261592087,5.94783648,4595.3,4595.2,5.509]